fUSD/lending_fUSD_20260414
["ID","MTS","AMOUNT","RATE_DAILY","PERIOD"]
[420477733,1776135055621,-1612.199727,0.00015068,2]
[420477734,1776135055634,-1612.199727,0.00015068,2]
[420477735,1776135055653,-1612.199727,0.00015068,2]
[420477736,1776135055680,-1612.199727,0.00015068,2]
[420477737,1776135055690,-1612.199727,0.00015068,2]
[420477738,1776135055711,-1612.199727,0.00015068,2]
[420477739,1776135055729,-1612.199727,0.00015068,2]
[420477740,1776135055745,-1612.199727,0.00015068,2]
[420477741,1776135055771,-1612.199727,0.00015068,2]
[420477742,1776135055781,-1612.199727,0.00015068,2]
[420477743,1776135055799,-801.82377364,0.00015068,2]
[420477744,1776135055812,-150.0,0.0001507,2]
[420477745,1776135055829,-150.0,0.00015077,2]
[420477746,1776135055839,-150.0,0.00015082,2]
[420477747,1776135055857,-150.0,0.00015085,2]
[420477748,1776135055869,-150.0,0.00015097,2]
[420477749,1776135055898,-150.0,0.00015097,2]
[420477750,1776135055955,-5630.98574149,0.000151,2]
[420477751,1776135056016,-2000.0,0.000151,2]
[420477752,1776135056029,-150.0,0.00015101,2]
[420477753,1776135056075,-150.0,0.00015101,2]
[420477754,1776135056086,-657.32607512,0.00015105,2]
[420477755,1776135056105,-150.0,0.00015116,2]
[420477756,1776135056126,-150.0,0.00015123,2]
[420477757,1776135056137,-150.0,0.00015124,2]
[420477758,1776135056155,-150.0,0.00015125,2]
[420477759,1776135056166,-150.0,0.0001513,2]
[420477760,1776135056176,-520.0,0.00015137,2]
[420477761,1776135056191,-251.11897888,0.00015138,2]
[420477762,1776135056210,-150.0,0.00015139,2]
[420477763,1776135056221,-5630.98574147,0.0001515,2]
[420477764,1776135056231,-150.0,0.00015151,2]
[420477765,1776135056242,-657.32607511,0.00015153,2]
[420477766,1776135056280,-150.0,0.00015153,2]
[420477767,1776135056292,-1047.0,0.00015153,2]
[420477768,1776135056310,-622.0,0.00015153,2]
[420477769,1776135056329,-1399.40131914,0.00015153,2]
[420477770,1776135057715,-1254.41808677,0.00015153,2]
[420477771,1776135060543,-500.0,9.592e-05,2]
[420477772,1776135060554,-279.21984446,9.592e-05,2]
[420477773,1776135060567,-500.0,9.592e-05,2]
[420477774,1776135060577,-222.90716435,9.592e-05,2]
[420477775,1776135060589,-187.33035703,9.592e-05,2]
[420477776,1776135060598,-220.41292189,9.592e-05,2]
[420477777,1776135060614,-500.0,9.592e-05,2]
[420477778,1776135060625,-500.0,9.592e-05,2]
[420477779,1776135060635,-500.0,9.592e-05,2]
[420477780,1776135060647,-165.54364727,9.592e-05,2]
[420477781,1776135060683,-334.45635273,9.592e-05,2]
[420477782,1776135060697,-500.0,0.00010373,2]
[420477783,1776135060706,-86.05713101,0.00015068,2]
[420477784,1776135060723,-1526.14259599,0.00015068,2]
[420477785,1776135060737,-1612.199727,0.00015068,2]
[420477786,1776135060746,-60.48636643,0.00015068,2]
[420477787,1776135061026,-42.50674506,0.00012388,2]
[420477788,1776135061053,-373.49325494,0.00012388,2]
[420477789,1776135061068,-1551.71336057,0.00015068,2]
[420477790,1776135061078,-1612.199727,0.00015068,2]
[420477791,1776135061087,-1612.199727,0.00015068,2]
[420477792,1776135061098,-1612.199727,0.00015068,2]
[420477793,1776135061112,-1612.199727,0.00015068,2]
[420477794,1776135061132,-1612.199727,0.00015068,2]
[420477795,1776135061141,-396.48585101,0.00015068,2]
[420477796,1776135061887,-1000.0,9.564e-05,2]
[420477797,1776135064529,-150.0,9.563e-05,2]
[420477798,1776135064544,-9850.01,9.564e-05,2]
[420477799,1776135480156,-578.20924308,9.373e-05,2]
[420477800,1776135480184,-500.0,9.373e-05,2]
[420477801,1776135480216,-160.595,9.373e-05,2]
[420477802,1776135480246,-2536.182,9.373e-05,2]
[420477803,1776135480271,-500.0,9.428e-05,2]
[420477804,1776135480306,-250.0,9.458e-05,2]
[420477805,1776135480346,-500.0,9.483e-05,2]
[420477806,1776135480420,-250.0,9.521e-05,2]
[420477807,1776135480463,-500.0,9.538e-05,2]
[420477808,1776135480494,-500.0,9.543e-05,2]
[420477809,1776135480537,-160.02455239,9.543e-05,2]
[420477810,1776135480569,-500.42337708,9.543e-05,2]
[420477811,1776135480594,-165.19144455,9.543e-05,2]
[420477812,1776135480626,-1428.38747117,9.559e-05,2]
[420477813,1776135480664,-642.03855249,9.559e-05,2]
[420477814,1776135480694,-200.0,9.559e-05,2]
[420477815,1776135480730,-628.94835924,9.559e-05,2]
[420477816,1776135491413,-300.0,9.558e-05,2]
[420477817,1776135491448,-250.0,9.558e-05,2]
[420477818,1776135491479,-92.17929611,9.559e-05,2]
[420477819,1776135491511,-200.0,9.559e-05,2]
[420477820,1776135491538,-151.0,9.559e-05,2]
[420477821,1776135491563,-500.0,9.559e-05,2]
[420477822,1776135491589,-500.0,9.559e-05,2]
[420477823,1776135491614,-500.0,9.559e-05,2]
[420477824,1776135491649,-500.0,9.559e-05,2]
[420477825,1776135491676,-209.40437684,9.559e-05,2]
[420477826,1776135491705,-776.42563213,9.559e-05,2]
[420477827,1776135491740,-500.0,9.559e-05,2]
[420477828,1776135491775,-500.0,9.559e-05,2]
[420477829,1776135491804,-500.0,9.559e-05,2]
[420477830,1776135491833,-500.0,9.559e-05,2]
[420477831,1776135491867,-500.0,9.559e-05,2]
[420477832,1776135491909,-174.61919141,9.559e-05,2]
[420477833,1776135491957,-500.0,9.559e-05,2]
[420477834,1776135492002,-500.0,9.559e-05,2]
[420477835,1776135492040,-279.9045709,9.559e-05,2]
[420477836,1776135492076,-1200.0,9.562e-05,2]
[420477837,1776135492099,-866.46693261,9.563e-05,3]
[420477838,1776135494546,-165.2269948,9.563e-05,3]
[420477839,1776135494588,-233.89,9.563e-05,2]
[420477840,1776135494621,-500.0,9.563e-05,2]
[420477841,1776135494659,-500.0,9.563e-05,2]
[420477842,1776135494687,-500.0,9.563e-05,2]
[420477843,1776135494714,-328.25139242,9.563e-05,2]
[420477844,1776135494750,-500.0,9.563e-05,2]
[420477845,1776135494806,-500.0,9.563e-05,2]
[420477846,1776135494857,-500.0,9.563e-05,2]
[420477847,1776135494901,-500.0,9.563e-05,2]
[420477848,1776135494937,-500.0,9.563e-05,2]
[420477849,1776135494990,-168.80429033,9.563e-05,2]
[420477850,1776135495045,-500.0,9.563e-05,2]
[420477851,1776135495083,-500.0,9.563e-05,2]
[420477852,1776135495125,-500.0,9.563e-05,2]
[420477853,1776135495166,-500.0,9.563e-05,2]
[420477854,1776135495204,-254.93332613,9.563e-05,2]
[420477855,1776135495286,-500.0,9.563e-05,2]
[420477856,1776135495327,-500.0,9.563e-05,2]
[420477857,1776135495364,-500.0,9.563e-05,2]
[420477858,1776135495401,-229.90809519,9.563e-05,2]
[420477859,1776135495433,-602.67156005,9.563e-05,2]
[420477860,1776135495472,-195.45389112,9.563e-05,2]
[420477861,1776135495496,-157.0,9.564e-05,3]
[420477862,1776135495536,-150.0,9.564e-05,3]
[420477863,1776135495617,-13.86044996,9.564e-05,2]
[420477864,1776135523608,10000.01,9.464e-05,2]
[420477865,1776135523642,4360.2397,9.464e-05,2]
[420477866,1776135533965,-10000.0,9.564e-05,2]
[420477867,1776135536372,-10000.0,9.564e-05,2]
[420477868,1776135550220,-300.0,9.563e-05,2]
[420477869,1776135550251,-9700.0,9.564e-05,2]
[420477870,1776135562945,-10000.0,9.564e-05,2]
[420477871,1776135564555,-10000.0,9.564e-05,2]
[420477872,1776135565627,-10000.0,9.564e-05,2]
[420477873,1776135566647,-10000.0,9.564e-05,2]
[420477874,1776135619510,-1200.0,9.563e-05,2]
[420477875,1776135619556,-150.0,9.564e-05,3]
[420477876,1776135619591,-158.0,9.564e-05,3]
[420477877,1776135619633,-8492.0,9.564e-05,2]
[420477878,1776135619845,-10000.0,9.564e-05,2]
[420477879,1776135624739,-10000.0,9.564e-05,2]
[420477880,1776135626306,-10000.0,9.564e-05,2]
[420477881,1776135628729,-10000.0,9.564e-05,2]
[420477882,1776135640459,-518.75603226,9.563e-05,2]
[420477883,1776135640493,-9481.24396774,9.564e-05,2]
[420477884,1776135641834,-10000.0,9.564e-05,2]
[420477885,1776135642188,-10000.0,9.564e-05,2]
[420477886,1776135642702,-10000.0,9.564e-05,2]
[420477887,1776135642910,-10000.0,9.564e-05,2]
[420477888,1776135643363,-10000.0,9.564e-05,2]
[420477889,1776135643653,-10000.0,9.564e-05,2]
[420477890,1776135643983,-10000.0,9.564e-05,2]
[420477891,1776135644385,-10000.0,9.564e-05,2]
[420477892,1776135644743,-10000.0,9.564e-05,2]
[420477893,1776135645037,-10000.0,9.564e-05,2]
[420477894,1776135645361,-10000.0,9.564e-05,2]
[420477895,1776135645737,-10000.0,9.564e-05,2]
[420477896,1776135646034,-178.45332829,9.563e-05,2]
[420477897,1776135646091,-9821.54667171,9.564e-05,2]
[420477898,1776135648199,-10000.0,9.564e-05,2]
[420477899,1776135652004,-10000.0,9.564e-05,2]
[420477900,1776135654815,169.18,8.232e-05,2]
[420477901,1776135654864,500.0,9.273e-05,2]
[420477902,1776135663644,-300.0,9.563e-05,2]
[420477903,1776135663674,-360.93566663,9.563e-05,2]
[420477904,1776135663699,-500.0,9.563e-05,2]
[420477905,1776135663729,-1499.11143337,9.564e-05,2]
[420477906,1776135667827,150.0,9.273e-05,3]
[420477907,1776135681998,4820.5903,9.464e-05,2]
[420477929,1776136091342,161.85365,0.000165,30]
[420477930,1776136119137,1612.85,9.036e-05,2]
[420477931,1776136223836,502.0,9.263e-05,2]
[420477932,1776136232276,-253.83271447,9.273e-05,2]
[420477933,1776136232290,-246.16728553,9.273e-05,2]
[420477934,1776136232323,-300.0,9.363e-05,2]
[420477936,1776136232335,-1200.0,9.363e-05,2]
[420477938,1776136232366,-143803.4638,9.364e-05,2]
[420477940,1776136232377,-300.0,9.372e-05,2]
[420477941,1776136232401,-203.0,9.372e-05,2]
[420477942,1776136232417,-1295.97614682,9.372e-05,2]
[420477943,1776136232430,-2399.423,9.373e-05,2]
[420477944,1776136232459,-159.798,9.373e-05,2]
[420477945,1776136232468,-161.10065646,9.373e-05,2]
[420477946,1776136232478,-6616.04272654,9.463e-05,2]
[420477947,1776136232501,-150.0,9.463e-05,2]
[420477948,1776136232511,-153.0,9.464e-05,3]
[420477949,1776136232531,-19522.0389,9.464e-05,2]
[420477950,1776136232553,-44006.55926525,9.464e-05,2]
[420477951,1776136232568,-21603.20613475,9.464e-05,2]
[420477952,1776136232577,-2853.8597,9.464e-05,2]
[420477953,1776136232594,-500.0,9.543e-05,2]
[420477954,1776136232605,-160.03259129,9.543e-05,2]
[420477955,1776136232615,-157.54008316,9.543e-05,2]
[420477956,1776136232633,-160.11577509,9.543e-05,2]
[420477957,1776136232643,-152.0,9.562e-05,2]
[420477958,1776136232656,-602.65496664,9.563e-05,2]
[420477959,1776136232676,-189.69829394,9.563e-05,2]
[420477960,1776136232686,-503.88373391,9.563e-05,2]
[420477961,1776136232701,-501.08927463,9.563e-05,2]
[420477962,1776136232717,-500.0,9.564e-05,2]
[420477963,1776136232745,-6962.69406799,9.584e-05,2]
[420477964,1776136232755,-1551.25,9.584e-05,2]
[420477965,1776136232766,-3265.36488071,9.584e-05,2]
[420477968,1776136238914,-1698.41755489,9.584e-05,2]
[420477969,1776136239001,-1450.80311392,9.584e-05,2]
[420477971,1776136239017,-260.907179,9.584e-05,2]
[420477974,1776136239058,-3324.49727148,9.584e-05,2]
[420477976,1776136239067,-150.99,9.584e-05,2]
[420477977,1776136239111,-978.11272854,9.584e-05,2]
[420477980,1776136240373,-248.0,9.584e-05,2]
[420477981,1776136240383,-0.07727146,9.584e-05,2]
[420477982,1776136240411,-150.0,9.6e-05,2]
[420477983,1776136240437,-657.95245824,9.9e-05,2]
[420477993,1776136242428,-1.26075015,9.9e-05,2]
[420477994,1776136242506,-340.78679161,9.9e-05,2]
[420477995,1776136242517,-805.57448206,9.973e-05,2]
[420477996,1776136242528,-272.24010028,9.973e-05,2]
[420477997,1776136242593,-458.87313864,9.973e-05,2]
[420478002,1776136243379,-674.37092057,9.973e-05,2]
[420478021,1776136246518,-984.90166488,9.973e-05,2]
[420478024,1776136271655,6777.4493,9.364e-05,2]
[420478025,1776136293108,500.0,9.173e-05,2]
[420478026,1776136299457,2722.5607,9.464e-05,2]
[420478027,1776136299482,7200.809,9.464e-05,2]
[420478028,1776136320450,2799.201,9.364e-05,2]
[420478029,1776136320476,10000.01,9.364e-05,2]
[420478030,1776136320500,10000.01,9.364e-05,2]
[420478031,1776136320524,10000.01,9.364e-05,2]
[420478032,1776136320549,10000.01,9.364e-05,2]
[420478033,1776136320574,10000.01,9.364e-05,2]
[420478034,1776136320601,10000.01,9.364e-05,2]
[420478035,1776136320633,10000.01,9.364e-05,2]
[420478036,1776136320665,10000.01,9.364e-05,2]
[420478037,1776136320700,10000.01,9.364e-05,2]
[420478038,1776136502421,-161.10065647,9.363e-05,2]
[420478039,1776136502501,300.0,9.362e-05,2]
[420478040,1776136502550,1200.0,9.362e-05,2]
[420478041,1776136502696,300.0,9.362e-05,2]
[420478042,1776136502944,150.0,9.362e-05,2]
[420478043,1776136561562,-500.0,9.363e-05,2]
[420478044,1776136561614,-500.0,9.363e-05,2]
[420478045,1776136561664,-500.0,9.363e-05,2]
[420478046,1776136561709,-500.0,9.363e-05,2]
[420478047,1776136561793,-500.0,9.363e-05,2]
[420478048,1776136561838,-500.0,9.363e-05,2]
[420478049,1776136561891,-500.0,9.363e-05,2]
[420478050,1776136561940,-500.0,9.363e-05,2]
[420478051,1776136562003,-500.0,9.363e-05,2]
[420478052,1776136562071,-500.0,9.363e-05,2]
[420478053,1776136562326,-500.0,9.363e-05,2]
[420478054,1776136562386,-365.10717084,9.363e-05,2]
[420478055,1776136562464,-500.0,9.363e-05,2]
[420478056,1776136562504,-500.0,9.363e-05,2]
[420478057,1776136562547,-260.42004267,9.363e-05,2]
[420478058,1776136562591,-260.42004267,9.363e-05,2]
[420478059,1776136562636,-500.0,9.363e-05,2]
[420478060,1776136562696,-500.0,9.363e-05,2]
[420478061,1776136562743,-260.42004267,9.363e-05,2]
[420478062,1776136562804,-500.0,9.363e-05,2]
[420478063,1776136562856,-260.42004267,9.363e-05,2]
[420478064,1776136562945,-500.0,9.363e-05,2]
[420478065,1776136563148,-500.0,9.363e-05,2]
[420478066,1776136563200,-500.0,9.363e-05,2]
[420478067,1776136563241,-500.0,9.363e-05,2]
[420478068,1776136563297,-500.0,9.363e-05,2]
[420478069,1776136563344,-500.0,9.363e-05,2]
[420478070,1776136563409,-500.0,9.363e-05,2]
[420478071,1776136563480,-634.3780384,9.363e-05,2]
[420478072,1776136563535,-500.0,9.363e-05,2]
[420478073,1776136563601,-500.0,9.363e-05,2]
[420478074,1776136563654,-231.2539232,9.363e-05,2]
[420478075,1776136563776,-268.7460768,9.363e-05,2]
[420478076,1776136563817,-500.0,9.363e-05,2]
[420478077,1776136563855,-500.0,9.363e-05,2]
[420478078,1776136563894,-500.0,9.363e-05,2]
[420478079,1776136563944,-500.0,9.363e-05,2]
[420478080,1776136564030,-500.0,9.363e-05,2]
[420478081,1776136564170,-500.0,9.363e-05,2]
[420478082,1776136564232,-161.10065646,9.364e-05,2]
[420478083,1776136564283,-157.0,9.364e-05,3]
[420478084,1776136564328,-153.0,9.364e-05,3]
[420478085,1776136620988,300.0,9.363e-05,2]
[420478086,1776136626736,153.0,9.364e-05,3]
[420478087,1776136662894,156.0,9.364e-05,3]
[420478088,1776136681323,300.0,9.363e-05,2]
[420478089,1776136682563,150.0,9.363e-05,2]
[420478090,1776136685573,500.0,9.363e-05,2]
[420478092,1776136686049,500.0,9.363e-05,2]
[420478094,1776136686309,461.31653348,9.363e-05,2]
[420478095,1776136686371,38.68346652,9.363e-05,2]
[420478096,1776136686490,500.0,9.363e-05,2]
[420478097,1776136686578,174.65836911,9.363e-05,2]
[420478098,1776136686772,153.0,9.364e-05,3]
[420478099,1776136698620,500.0,9.363e-05,2]
[420478100,1776136698804,500.0,9.363e-05,2]
[420478101,1776136698867,500.0,9.363e-05,2]
[420478102,1776136698934,500.0,9.363e-05,2]
[420478103,1776136699004,500.0,9.363e-05,2]
[420478104,1776136699080,500.0,9.363e-05,2]
[420478105,1776136699143,500.0,9.363e-05,2]
[420478106,1776136699187,500.0,9.363e-05,2]
[420478107,1776136699270,500.0,9.363e-05,2]
[420478108,1776136699334,500.0,9.363e-05,2]
[420478109,1776136699814,500.0,9.363e-05,2]
[420478110,1776136699884,500.0,9.363e-05,2]
[420478111,1776136699972,500.0,9.363e-05,2]
[420478112,1776136700016,500.0,9.363e-05,2]
[420478113,1776136700072,500.0,9.363e-05,2]
[420478114,1776136700131,500.0,9.363e-05,2]
[420478115,1776136700179,500.0,9.363e-05,2]
[420478116,1776136700245,500.0,9.363e-05,2]
[420478117,1776136700316,133.66816437,9.363e-05,2]
[420478118,1776136700358,366.33183563,9.363e-05,2]
[420478119,1776136713609,500.0,9.363e-05,2]
[420478120,1776136713656,500.0,9.363e-05,2]
[420478121,1776136713717,500.0,9.363e-05,2]
[420478122,1776136713815,500.0,9.363e-05,2]
[420478123,1776136713857,500.0,9.363e-05,2]
[420478124,1776136713963,500.0,9.363e-05,2]
[420478125,1776136714007,500.0,9.363e-05,2]
[420478126,1776136714057,500.0,9.363e-05,2]
[420478127,1776136726389,381.03071634,0.0001617,30]
[420478128,1776136726432,400.0,0.0001617,30]
[420478129,1776136731972,262.79922163,9.363e-05,2]
[420478130,1776136742749,500.0,9.363e-05,2]
[420478131,1776136742979,326.40352171,9.363e-05,2]
[420478132,1776136747209,500.0,9.363e-05,2]
[420478133,1776136751653,154.0,9.364e-05,3]
[420478134,1776136782236,265.36859106,9.363e-05,2]
[420478135,1776136801182,300.0,9.363e-05,2]
[420478136,1776136801261,1200.0,9.363e-05,2]
[420478137,1776136802793,1382.09009037,9.086e-05,2]
[420478138,1776136808012,157.0,9.364e-05,3]
[420478139,1776136811930,153.0,9.364e-05,3]
[420478140,1776136840816,433.0167396,9.264e-05,2]
[420478141,1776136840852,2066.9832604,9.264e-05,2]
[420478142,1776136861155,300.0,9.363e-05,2]
[420478143,1776136862217,150.0,9.363e-05,2]
[420478144,1776136888908,2756.948,9.177e-05,2]
[420478145,1776136888994,177.159,9.177e-05,2]
[420478146,1776136916714,500.0,9.363e-05,2]
[420478147,1776136916787,578.48246519,9.363e-05,2]
[420478148,1776136921317,300.0,9.363e-05,2]
[420478149,1776136922497,1596.41,9.364e-05,2]
[420478150,1776136930689,153.0,9.364e-05,3]
[420478151,1776136935866,798.21,9.364e-05,2]
[420478152,1776136946321,-6241.08079602,9.364e-05,2]
[420478153,1776136946346,-10000.01,9.364e-05,2]
[420478154,1776136946377,-10000.01,9.364e-05,2]
[420478155,1776136946397,-10000.01,9.364e-05,2]
[420478156,1776136946478,-10000.01,9.364e-05,2]
[420478157,1776136946537,-10000.01,9.364e-05,2]
[420478158,1776136946617,-10000.01,9.364e-05,2]
[420478159,1776136947611,-10000.01,9.364e-05,2]
[420478160,1776136947740,-10000.01,9.364e-05,2]
[420478161,1776136947889,-10000.01,9.364e-05,2]
[420478162,1776136950697,-10000.01,9.364e-05,2]
[420478163,1776136950862,-10000.01,9.364e-05,2]
[420478164,1776136950996,-10000.01,9.364e-05,2]
[420478165,1776136951203,-10000.01,9.364e-05,2]
[420478166,1776136951513,-10000.01,9.364e-05,2]
[420478167,1776136951626,-10000.01,9.364e-05,2]
[420478168,1776136951696,-10000.01,9.364e-05,2]
[420478171,1776136958199,188.32641406,9.363e-05,2]
[420478172,1776136969059,400.0,0.0001617,30]
[420478173,1776136969135,528.73295752,0.0001617,30]
[420478174,1776136979295,1099.2216,9.264e-05,2]
[420478175,1776136982474,8210.1008155,9.364e-05,2]
[420478176,1776136991380,502.36117044,9.264e-05,2]
[420478177,1776136991409,10000.01,9.264e-05,2]
[420478178,1776136991438,7936.26682956,9.264e-05,2]
[420478179,1776136999478,2063.74317044,9.264e-05,2]
[420478180,1776136999516,436.25682956,9.264e-05,2]
[420478191,1776137031948,306.21188415,0.0001617,30]
[420478192,1776137033796,400.0,0.0001617,30]
[420478193,1776137156010,2500.0,9.264e-05,2]
[420478194,1776137160688,-160.0,9.362e-05,2]
[420478195,1776137160731,-1200.0,9.362e-05,2]
[420478196,1776137160783,-284.0,9.362e-05,2]
[420478197,1776137175355,-300.0,9.363e-05,2]
[420478198,1776137175471,-150.0,9.363e-05,2]
[420478199,1776137175559,-438.4746,9.363e-05,2]
[420478200,1776137281297,300.0,9.362e-05,2]
[420478201,1776137296771,2500.0,9.264e-05,2]
[420478202,1776137341272,300.0,9.362e-05,2]
[420478203,1776137349747,178.0207,9.363e-05,2]
[420478204,1776137396956,488.2776,9.263e-05,2]
[420478205,1776137401274,300.0,9.362e-05,2]
[420478206,1776137401336,1200.0,9.362e-05,2]
[420478207,1776137403913,300.0,9.362e-05,2]
[420478208,1776137404154,300.0,9.362e-05,2]
[420478209,1776137404293,150.0,9.362e-05,2]
[420478210,1776137417350,3983.7117,9.264e-05,2]
[420478211,1776137417383,10000.01,9.264e-05,2]
[420478212,1776137417411,10000.01,9.264e-05,2]
[420478213,1776137417439,10000.01,9.264e-05,2]
[420478214,1776137417469,10000.01,9.264e-05,2]
[420478215,1776137417506,10000.01,9.264e-05,2]
[420478230,1776137433362,-159130.12991477,9.264e-05,2]
[420478231,1776137433375,-33815.69445455,9.264e-05,2]
[420478260,1776137438870,-85990.75593068,9.264e-05,2]
[420478261,1776137438927,-500.0,9.363e-05,2]
[420478262,1776137438937,-500.0,9.363e-05,2]
[420478263,1776137438967,-500.0,9.363e-05,2]
[420478264,1776137438978,-332.35132421,9.363e-05,2]
[420478265,1776137438998,-500.0,9.363e-05,2]
[420478266,1776137439039,-500.0,9.363e-05,2]
[420478267,1776137439057,-500.0,9.363e-05,2]
[420478268,1776137439087,-295.6010493,9.363e-05,2]
[420478269,1776137439107,-500.0,9.363e-05,2]
[420478270,1776137439137,-500.0,9.363e-05,2]
[420478271,1776137439158,-500.0,9.363e-05,2]
[420478272,1776137439168,-500.0,9.363e-05,2]
[420478274,1776137439180,-500.0,9.363e-05,2]
[420478277,1776137439203,-500.0,9.363e-05,2]
[420478279,1776137439215,-500.0,9.363e-05,2]
[420478280,1776137439225,-183.95945514,9.363e-05,2]
[420478283,1776137439248,-500.0,9.363e-05,2]
[420478284,1776137439261,-500.0,9.363e-05,2]
[420478287,1776137439272,-500.0,9.363e-05,2]
[420478289,1776137439297,-500.0,9.363e-05,2]
[420478291,1776137439308,-500.0,9.363e-05,2]
[420478293,1776137439326,-500.0,9.363e-05,2]
[420478295,1776137439339,-500.0,9.363e-05,2]
[420478297,1776137439349,-220.62130263,9.363e-05,2]
[420478299,1776137439358,-500.0,9.363e-05,2]
[420478301,1776137439377,-500.0,9.363e-05,2]
[420478302,1776137439387,-500.0,9.363e-05,2]
[420478304,1776137439397,-500.0,9.363e-05,2]
[420478306,1776137439414,-500.0,9.363e-05,2]
[420478309,1776137439426,-500.0,9.363e-05,2]
[420478310,1776137439437,-500.01,9.363e-05,2]
[420478313,1776137439454,-500.0,9.363e-05,2]
[420478314,1776137439466,-500.0,9.363e-05,2]
[420478317,1776137439476,-500.0,9.363e-05,2]
[420478319,1776137439487,-300.0,9.363e-05,2]
[420478321,1776137439498,-500.0,9.363e-05,2]
[420478322,1776137439511,-500.0,9.363e-05,2]
[420478323,1776137439522,-500.0,9.363e-05,2]
[420478325,1776137439534,-52137.86977092,9.364e-05,2]
[420478326,1776137439546,-588.74423193,9.364e-05,2]
[420478329,1776137440773,-45403.7578864,9.364e-05,2]
[420478351,1776137443450,-887.00102635,9.364e-05,2]
[420478352,1776137443759,-4694.93067227,9.364e-05,2]
[420478353,1776137443778,-283.78142811,9.364e-05,2]
[420478354,1776137443868,-989.29856,9.364e-05,2]
[420478361,1776137447289,-13004.66814329,9.364e-05,2]
[420478362,1776137532708,2616.884137,9.217e-05,2]
[420478363,1776137545239,-7283.23802222,9.264e-05,2]
[420478364,1776137545282,-10000.01,9.264e-05,2]
[420478365,1776137545373,-229.69212222,9.264e-05,2]
[420478366,1776137545419,-9540.62575556,9.264e-05,2]
[420478367,1776137563459,150.0,0.000164,120]
[420478368,1776137583941,10000.01,9.264e-05,2]
[420478369,1776137583980,10000.01,9.264e-05,2]
[420478370,1776137584020,10000.01,9.264e-05,2]
[420478371,1776137584058,10000.01,9.264e-05,2]
[420478372,1776137584087,10000.01,9.264e-05,2]
[420478373,1776137584129,10000.01,9.264e-05,2]
[420478374,1776137584168,10000.01,9.264e-05,2]
[420478375,1776137584215,10000.01,9.264e-05,2]
[420478376,1776137584246,10000.01,9.264e-05,2]
[420478377,1776137584285,10000.01,9.264e-05,2]
[420478378,1776137623970,300.0,8.9e-05,3]
[420478379,1776137626046,700.0,9e-05,3]
[420478380,1776137751501,150.0,0.000164,120]
[420478381,1776137768000,200.0,8.899e-05,2]
[420478382,1776137790018,-182.3335,9e-05,2]
[420478383,1776137850397,157.55,8.985e-05,2]
[420478384,1776137888841,-157.0,9e-05,3]
[420478385,1776137888887,-164.0,9e-05,3]
[420478386,1776137888936,-294.0,9e-05,3]
[420478387,1776137888987,-300.0,9.261e-05,2]
[420478388,1776137889060,-2640.93898882,9.262e-05,2]
[420478389,1776137889122,-1200.0,9.262e-05,2]
[420478390,1776137889161,-188.13202236,9.262e-05,2]
[420478391,1776137889516,-111.86797764,9.262e-05,2]
[420478392,1776137889564,-150.0,9.262e-05,2]
[420478393,1776137889598,-500.0,9.263e-05,2]
[420478394,1776137889661,-193.71384333,9.263e-05,2]
[420478395,1776137889712,-186.9791577,9.263e-05,2]
[420478396,1776137889763,-500.0,9.263e-05,2]
[420478397,1776137889803,-400.48793334,9.263e-05,2]
[420478398,1776137889853,-500.0,9.263e-05,2]
[420478399,1776137889899,-466.40324468,9.263e-05,2]
[420478400,1776137889951,-500.0,9.263e-05,2]
[420478401,1776137890039,-490.37962993,9.263e-05,2]
[420478402,1776137890087,-500.0,9.263e-05,2]
[420478403,1776137890134,-500.0,9.263e-05,2]
[420478404,1776137890329,-500.0,9.263e-05,2]
[420478405,1776137890369,-500.0,9.263e-05,2]
[420478406,1776137890412,-500.0,9.263e-05,2]
[420478407,1776137890458,-500.0,9.263e-05,2]
[420478408,1776137890500,-159.0,9.264e-05,3]